Cogmind - Beta 16 @@@ ROGUE MODE // 2026.01.15 @ 18:31:03 Player: DietSnapple Result: Destroyed by P-70 Sage with High-powered Shock Rifle Performance ------------- Evolutions (6) 3000 Regions Visited (5) 1000 Robots Destroyed (40) 200 Value Destroyed (1154) 1154 Prototype IDs (6) 120 Alien Tech Used (0) 0 Bonus (800) 800 TOTAL SCORE: 6274 Bonus ------- Registered with UFD 300 Met Optimus in HQ 500 Cogmind --------- Core Integrity 0/1150 Matter 275/300 Energy 14/100 System Corruption 0% Temperature Cool (0) Movement Core (50) Location -4/Factory Parts ------- > --- POWER (3) -------- (None) > --- PROPULSION (3) --- (None) > --- UTILITY (10) ----- (None) > --- WEAPON (3) ------- (None) > --- INVENTORY (5) ---- Deep Structural Scanner Surveybot 17 Chip Advanced Transmission Jammer Advanced System Shield Peak State ------------ > --- POWER ------------ Improved Deuterium Engine Light Angular Momentum Engine Neutrino Core > --- PROPULSION ------- Wheel Wheel > --- UTILITY ---------- Advanced Heat Sink Improved Cooling System Huge Storage Unit Sensor Array Improved Signal Interpreter Core Analyzer Improved Medium Armor Plating Improved Medium Armor Plating Improved Medium Armor Plating > --- WEAPON ----------- Wave Gun KE Penetrator KE Penetrator > --- INVENTORY -------- Compact Wheel High-capacity Storage Unit Deep Structural Scanner Signal Interpreter Improved Terrain Scan Processor Surveybot 17 Chip Seismic Detector Advanced ECM Suite Utility Shielding Field Recycling Unit Mapping Drone Bay Grenade Launcher Mining Laser CPS Tube CPS Tube DRS Beacon [Rating: 69] Favorites ----------- Power Light Nuclear Core Engine Improved Deuterium Engine Power Core Light Nuclear Core Propulsion Wheel Treads Light Treads Wheel Wheel Hover Unit Backup Propulsion I Utility Huge Storage Unit Device Improved Cooling System Storage Huge Storage Unit Processor Core Analyzer Protection Light Armor Plating Weapon Assault Rifle Energy Gun Small Laser Ballistic Gun Assault Rifle Launcher Grenade Launcher Build | -11 -10 -10 -7 -5 -4 ------- Run | Yrd Mat Sub Scr Fac Fac Slots Evolved 12 | . . . . 10 2 Power 2 | . . . . 2 . Propulsion 1 | . . . . . 1 Utility 8 | . . . . 7 1 Weapon 1 | . . . . 1 . Parts Attached 47 | 7 13 . 3 21 3 Power 6 | 1 1 . 1 3 . Engine 4 | 1 . . 1 2 . Core 2 | . 1 . . 1 . Reactor . | . . . . . . Propulsion 8 | 2 3 . 1 1 1 Treads 2 | 2 . . . . . Leg . | . . . . . . Wheel 5 | . 3 . 1 1 . Hover 1 | . . . . . 1 Flight . | . . . . . . Utility 21 | 2 4 . 1 12 2 Device 7 | 1 . . . 4 2 Storage 3 | 1 2 . . . . Processor 2 | . . . . 2 . Hackware . | . . . . . . Protection 9 | . 2 . 1 6 . Artifact . | . . . . . . Weapon 12 | 2 5 . . 5 . Energy Gun 3 | . 2 . . 1 . Energy Cannon . | . . . . . . Ballistic Gun 8 | 2 3 . . 3 . Ballistic Cannon . | . . . . . . Launcher 1 | . . . . 1 . Special Weapon . | . . . . . . Impact Weapon . | . . . . . . Slashing Weapon . | . . . . . . Piercing Weapon . | . . . . . . Special Melee Weapon . | . . . . . . Unidentified Prototypes . | . . . . . . Parts Lost 37 | . 6 . . 30 1 Power 5 | . . . . 5 . Propulsion 6 | . 2 . . 4 . Utility 16 | . 2 . . 13 1 Weapon 10 | . 2 . . 8 . Highest Loss Streak 15 | . 3 . . 15 1 To Critical Strikes . | . . . . . . Average Backups 17 | 2 13 23 23 13 4 Power . | . 1 1 1 . . Propulsion . | . . 1 1 . . Utility 11 | . 8 15 15 9 4 Weapon 3 | . 3 6 4 1 . Tool/Special . | . . . . . . Unused Backups 24 | . . . 10 10 4 Power . | . . . . . . Propulsion . | . . . . . . Utility 18 | . . . 7 7 4 Weapon 4 | . . . 3 1 . Tool/Special 2 | . . . . 2 . Average Slot Usage (%) 87 | . 96 100 92 65 1 Engine 4 | . 4 . 3 9 . Core 8 | . 9 14 9 2 . Treads 1 | . 4 . . . . Wheel 22 | . 21 28 28 5 . Device 1 | . 2 . . 6 . Storage 12 | . 14 14 14 3 . Protection 12 | . 11 14 12 14 . Energy Gun 3 | . 9 . . 3 . Ballistic Gun 19 | . 18 28 24 8 . Peak Build Rating 69 | 7 11 11 17 69 16 Average Rating 15 | 5 9 11 13 40 4 On Entrance 8 | . 7 11 11 17 2 Avg Prop Armor Cover (%) . | . . . . . . Naked Turns 240 | . . . . 106 134 Heaviest Build 153 | 13 92 92 102 153 10 Greatest Support 40 | 40 40 26 26 20 12 Greatest Overweight (x) 15 | . 5 3 5 15 3 Average Overweight (x) 2 | . 2 3 3 3 . Largest Inventory Capacity 25 | 8 25 25 25 25 5 Average Capacity 22 | 7 21 25 25 19 5 Most Carried 25 | 4 23 23 25 23 5 Average Carried 18 | 2 13 23 24 13 4 Final Capacity 25 | 8 25 25 25 5 5 Final Carried 24 | 4 23 23 24 5 4 Class Distribution -------------------- 91% | Mutant 5% | Scavenger-Tank Dominant Class ---------------- Mutant | -10/Materials Mutant | -10/Subcaves Mutant | -7/Scraptown Scavenger-Tank | -5/Factory Mutant | -4/Factory Resources | -11 -10 -10 -7 -5 -4 ----------- Run | Yrd Mat Sub Scr Fac Fac Matter Collected 1194 | 288 375 9 168 354 . Remotely . | . . . . . . Salvage Created 1441 | 91 737 . . 613 . Parts 91 | 5 46 . . 40 . Haulers Intercepted 2 | . 2 . . . . Recyclers Shooed . | . . . . . . Parts Field Recycled . | . . . . . . Retrieved Matter . | . . . . . . Parts Self-Destructed . | . . . . . . Prevented . | . . . . . . Parts Restored . | . . . . . . Kills | -11 -10 -10 -7 -5 -4 ------- Run | Yrd Mat Sub Scr Fac Fac Combat Hostiles Destroyed 29 | . 16 . . 13 . Melee 1 | . . . . 1 . Guns 23 | . 16 . . 7 . AOE 4 | . . . . 4 . Classes Destroyed 12 | 2 7 . . 3 . Worker 3 | . 2 . . 1 . Builder 2 | . 1 . . 1 . Tunneler 1 | 1 . . . . . Hauler 2 | . 2 . . . . Recycler 1 | 1 . . . . . Operator 1 | . 1 . . . . Watcher 1 | . 1 . . . . Swarmer 8 | . 6 . . 2 . Cutter 3 | . . . . 3 . Saboteur 1 | . . . . 1 . Grunt 14 | . 10 . . 4 . Sentry 3 | . . . . 3 . Best Kill Streak 5 | 2 5 . . 5 . Combat Bots Only 5 | . 3 . . 5 . Max Kills in Single Turn 4 | 1 1 . . 4 . Gunslinging . | . . . . . . Exploded 4 | . . . . 4 . Melee 1 | . . . . 1 . Uniques/NPCs Destroyed . | . . . . . . Combat | -11 -10 -10 -7 -5 -4 -------- Run | Yrd Mat Sub Scr Fac Fac Hostile Shots Fired 406 | . 112 . . 186 108 Missed 108 | . 26 . . 45 37 Hits 298 | . 86 . . 141 71 Melee 9 | . . . . 8 1 Projectile 289 | . 86 . . 133 70 Critical Strikes 11 | . . . . 8 3 Damage Taken 5875 | . 1030 . . 3560 1285 Core 2278 | . 158 . . 964 1156 Absorbed by Shields . | . . . . . . Core Remaining (%) 46 | 100 . . 36 3 . Volleys Fired 147 | 3 93 . . 51 . Largest 3 | 2 2 . . 3 . Hottest 147 | 40 60 . . 147 . Shots Fired 305 | 6 179 . . 120 . Gun 301 | 6 179 . . 116 . Cannon . | . . . . . . Launcher 4 | . . . . 4 . Special . | . . . . . . Kinetic 219 | 6 122 . . 91 . Thermal 78 | . 53 . . 25 . Explosive 4 | . . . . 4 . Electromagnetic 4 | . 4 . . . . Robot Hit Streak 22 | 2 16 . . 22 . Robot Miss Streak 3 | 2 3 . . 3 . Penetration Max 1 | . . . . 1 . Secondary Targets 1 | . 1 . . . . Max Gunslinging Chain 1 | . 1 . . . . Shots Hit Robots 207 | 3 118 . . 86 . Core Hits 87 | 3 40 . . 44 . Critical Kills . | . . . . . . Critical Parts Destroyed 2 | . . . . 2 . Critical Strikes 2 | . . . . 2 . Destroy 2 | . . . . 2 . Melee Attacks . | . . . . . . Impact . | . . . . . . Slashing . | . . . . . . Piercing . | . . . . . . Sneak Attacks . | . . . . . . Combat Hostiles . | . . . . . . Follow-up Attacks . | . . . . . . Damage Inflicted 3377 | 36 1335 . . 1965 41 Guns 2857 | 36 1324 . . 1497 . Cannons . | . . . . . . Explosions 431 | . . . . 431 . Melee . | . . . . . . Ramming 89 | . 11 . . 37 41 Kinetic 2014 | 36 863 . . 1115 . Thermal 1192 | . 421 . . 771 . Explosive 42 | . . . . 42 . Electromagnetic 40 | . 40 . . . . Impact . | . . . . . . Slashing . | . . . . . . Piercing . | . . . . . . Highest Corruption 2 | . 1 1 . 2 . Average Corruption 1 | . 1 1 . 2 . Corruption Purged . | . . . . . . Corruption Blocked . | . . . . . . Effects 3 | . 2 1 . . . Matter Fused 1 | . 1 . . . . Data Loss (minor) 1 | . . 1 . . . Misfires 1 | . 1 . . . . Overload Shots . | . . . . . . Overflow Damage 88 | . . . . 88 . Projectiles . | . . . . . . Explosions 88 | . . . . 88 . Melee . | . . . . . . Knockbacks . | . . . . . . Impact . | . . . . . . Kinetic . | . . . . . . Secondary . | . . . . . . Self-Inflicted Damage 232 | . 5 . . 207 20 Shots 3 | . . . . 3 . Rammed 13 | . 1 . . 7 5 Targets Rammed 13 | . 1 . . 7 5 Kicked . | . . . . . . Crushed . | . . . . . . Highest Temperature 398 | . 291 . . 398 15 Average Temperature 89 | . 67 . . 134 15 Received Heat Transfer 1027 | . 489 . . 405 133 Effects 2 | . . . . 2 . Short Circuit 1 | . . . . 1 . Damage (minor) 1 | . . . . 1 . Siege Activations . | . . . . . . Martial Activations . | . . . . . . Shielding Activations . | . . . . . . Robots Disrupted . | . . . . . . Combat Hostiles . | . . . . . . Robots Corrupted . | . . . . . . Combat Hostiles . | . . . . . . Parts Fried . | . . . . . . Impact Corruptions . | . . . . . . Robots Melted 1 | . . . . 1 . Combat Hostiles 1 | . . . . 1 . Parts Melted 5 | . . . . 5 . Heat Transferred 1829 | . 950 . . 879 . Parts Sabotaged 2 | . . . . 2 . Parts Stolen . | . . . . . . Parts Stripped . | . . . . . . Power Chain Reactions . | . . . . . . Alert | -11 -10 -10 -7 -5 -4 ------- Run | Yrd Mat Sub Scr Fac Fac Maximum Alert Level 1 | . . . . 1 . Low Security (%) 92 | 100 100 . . 72 100 Level 1 7 | . . . . 27 . Level 2 . | . . . . . . Level 3 . | . . . . . . Level 4 . | . . . . . . Level 5 . | . . . . . . High Security . | . . . . . . Max Security . | . . . . . . Peak Influence 305 | 10 130 . . 305 182 Initial 132 | . . . . . 132 Average 64 | . 52 . . 89 125 Influence Increases 1466 | 10 555 . . 751 150 Destroy 0b10 Robot/C 580 | . 320 . . 260 . Destroy 0b10 Robot/NC 55 | 10 35 . . 10 . Destroy Leader 146 | . 76 . . 70 . Successful Hack 9 | . 3 . . 6 . Select Force Hacks 60 | . 60 . . . . Disable Machine 150 | . . . . 150 . Destroy Structure 121 | . 1 . . 120 . Partial Spotted 15 | . . . . . 15 Lose Combat Pursuer 330 | . 60 . . 135 135 Influence Decreases 1294 | 10 518 37 . 481 248 Entered New Map 156 | . . 18 . . 138 Time Decay 802 | 10 458 19 . 235 80 Lost Part 316 | . 60 . . 246 10 Lost Ally 20 | . . . . . 20 Squads Dispatched 23 | . 3 . . 17 3 Investigation 5 | . 2 . . 1 2 Extermination 1 | . . . . 1 . Reinforcement 6 | . 1 . . 4 1 Assault 2 | . . . . 2 . Garrison 9 | . . . . 9 . Intercept . | . . . . . . Searches Triggered . | . . . . . . Construction Impeded . | . . . . . . Haulers Reinforced . | . . . . . . Active Scanning Responses . | . . . . . . Cargo Convoy Interrupts 1 | . . . . 1 . Stealth | -11 -10 -10 -7 -5 -4 --------- Run | Yrd Mat Sub Scr Fac Fac Distress Signals 1 | . 1 . . . . Communications Jammed . | . . . . . . Distress Signals . | . . . . . . Times Spotted 85 | . 37 . . 29 19 Peak Tracking Total 12 | . 4 . . 9 12 Tactical Retreats 11 | . 2 . . 6 3 Traps | -11 -10 -10 -7 -5 -4 ------- Run | Yrd Mat Sub Scr Fac Fac Traps Triggered 5 | . 4 . . . 1 Indirectly . | . . . . . . Trap Hack Attempts . | . . . . . . Triggered . | . . . . . . Disarmed . | . . . . . . Reprogrammed . | . . . . . . Reused . | . . . . . . Traps Extracted . | . . . . . . Installed . | . . . . . . Triggered . | . . . . . . Most Traps Carried 1 | . . . 1 . . Machines | -11 -10 -10 -7 -5 -4 ---------- Run | Yrd Mat Sub Scr Fac Fac Machines Disabled 10 | . . . . 10 . Max in Single Turn 10 | . . . . 10 . Garrison Access 1 | . . . . 1 . Machines Repaired . | . . . . . . Machines Dismantled . | . . . . . . Machines Sabotaged . | . . . . . . Overloaded Fab Kills . | . . . . . . Hacking | -11 -10 -10 -7 -5 -4 --------- Run | Yrd Mat Sub Scr Fac Fac Machines Accessed 17 | . 8 . 5 2 2 Terminals 7 | . 6 . . . 1 Fabricators . | . . . . . . Repair Stations 2 | . . . . 1 1 Recycling Units 2 | . 2 . . . . Scanalyzers . | . . . . . . Garrison Access 1 | . . . . 1 . Total Hacks 72 | . 19 . 44 4 5 Successful 59 | . 13 . 44 1 1 Failed 13 | . 6 . . 3 4 Catastrophic 2 | . 1 . . 1 . Database Lockouts . | . . . . . . Manual 16 | . 15 . . . 1 Terminals 17 | . 16 . . . 1 Fabricators . | . . . . . . Repair Stations 6 | . . . . 2 4 Recycling Units 3 | . 3 . . . . Scanalyzers . | . . . . . . Garrison Access 2 | . . . . 2 . Terminal Hacks 48 | . 4 . 44 . . Record 43 | . . . 43 . . Locate Traps 3 | . 3 . . . . Hauler Manifests 1 | . 1 . . . . Proto ID Catalog 1 | . . . 1 . . Fabricator Hacks . | . . . . . . Repair Station Hacks 1 | . . . . 1 . Refit 1 | . . . . 1 . Recycling Unit Hacks . | . . . . . . Scanalyzer . | . . . . . . Garrison Access Hacks . | . . . . . . Unauthorized Hacks 10 | . 9 . . . 1 Terminals 8 | . 7 . . . 1 Botnet 2 | . 2 . . . . Skim 5 | . 5 . . . . Sabotage 1 | . . . . . 1 Fabricators . | . . . . . . Repair Stations . | . . . . . . Recycling Units 2 | . 2 . . . . Tunnel 2 | . 2 . . . . Scanalyzers . | . . . . . . Garrison Access . | . . . . . . Data Cores Recovered . | . . . . . . Used . | . . . . . . Hacking Detections 9 | . 6 . . 2 1 Full Trace Events 2 | . . . . 1 1 Feedback Events . | . . . . . . Feedback Blocked . | . . . . . . Robot Schematics Acquired . | . . . . . . Robots Built . | . . . . . . Authchips . | . . . . . . Time . | . . . . . . Total Robot Build Rating . | . . . . . . Part Schematics Acquired . | . . . . . . Parts Built . | . . . . . . Authchips . | . . . . . . Time . | . . . . . . Total Part Build Rating . | . . . . . . Part Studies Acquired . | . . . . . . Parts Repaired . | . . . . . . Time . | . . . . . . Parts Recycled . | . . . . . . Recycled Matter . | . . . . . . Retrieved Matter . | . . . . . . Retrieved Components . | . . . . . . Parts Scanalyzed . | . . . . . . Part Schematics Acquired . | . . . . . . Parts Damaged . | . . . . . . Bothacking | -11 -10 -10 -7 -5 -4 ------------ Run | Yrd Mat Sub Scr Fac Fac Used RIF Installer . | . . . . . . Robots Hacked . | . . . . . . Non-combat . | . . . . . . Combat . | . . . . . . Robot Hacks Applied . | . . . . . . Relay Couplers Released 1 | . . . . 1 . Machine Destruction 1 | . . . . 1 . Fabnet Peak Effective % . | . . . . . . Robots Rewired . | . . . . . . Allies Hacked . | . . . . . . Hacks Repelled . | . . . . . . Allies | -11 -10 -10 -7 -5 -4 -------- Run | Yrd Mat Sub Scr Fac Fac Total Allies . | . . . . . . Largest Group . | . . . . . . Highest-Rated Group . | . . . . . . Highest-Rated Ally . | . . . . . . Total Orders . | . . . . . . Ally Attacks . | . . . . . . Total Damage . | . . . . . . Kills . | . . . . . . Allies Corrupted . | . . . . . . Allies Melted . | . . . . . . Intel | -11 -10 -10 -7 -5 -4 ------- Run | Yrd Mat Sub Scr Fac Fac Active Infowar (turns) 490 | 32 252 . . 206 . Sensors 112 | . . . . 112 . Structural 94 | . . . . 94 . Seismic 284 | 32 252 . . . . Robot Analysis Total . | . . . . . . Derelict Logs Recovered . | . . . . . . Drone Launches 3 | . . . . . 3 Drone Recoveries 1 | . . . . . 1 Exploration | -11 -10 -10 -7 -5 -4 ------------- Run | Yrd Mat Sub Scr Fac Fac Turns Passed 5747 | 116 1744 82 2896 743 166 Spaces Moved 3891 | 61 975 60 2065 432 298 Core 491 | 4 . . . 199 288 Treads 152 | 57 95 . . . . Legs . | . . . . . . Wheels 3141 | . 880 60 2065 136 . Hover 107 | . . . . 97 10 Flight . | . . . . . . Fastest Speed 50 | 50 105 135 125 50 50 Average Speed 128 | 152 134 135 138 113 51 Slowest Speed 305 | 160 240 135 155 305 200 Overloaded Moves . | . . . . . . Propulsion Burnouts . | . . . . . . Robots Hopped . | . . . . . . Potential Cave-ins . | . . . . . . Cave-ins Triggered . | . . . . . . Exploration Rate (%) 37 | 4 97 6 91 13 13 Regions Visited 5 Branch Regions 2 Pre-discovered Areas 7 | . 2 . 5 . . Known Exits Taken 3 | . 1 . 1 1 . Unknown Exits Taken 2 | 1 . 1 . . . Scrap Searched 5 | . . . 5 . . Spaces Dug . | . . . . . . Terrain Destroyed 61 | . . . . 61 . Melee . | . . . . . . Projectile 4 | . . . . 4 . AOE 57 | . . . . 57 . Terrain Rammed . | . . . . . . Walls Destroyed . | . . . . . . Machines Disabled . | . . . . . . Actions | -11 -10 -10 -7 -5 -4 --------- Run | Yrd Mat Sub Scr Fac Fac Total 4381 | 74 1232 61 2114 589 311 Wait 196 | . 117 2 . 74 3 Move 3887 | 60 974 59 2064 432 298 Hop . | . . . . . . Pick Up 49 | 4 24 . 18 2 1 Fast Attach 32 | 7 8 . 4 11 2 Attach 18 | . 6 . 1 10 1 Detach 2 | . . . 1 1 . Swap 10 | . 7 . 3 . . Drop 27 | . 2 . 22 2 1 Fire 147 | 3 93 . . 51 . Melee . | . . . . . . Ram 12 | . 1 . . 6 5 Kick . | . . . . . . Crush . | . . . . . . Escape Stasis . | . . . . . . Rewire 1 | . . . 1 . . Trap . | . . . . . . Miscellaneous . | . . . . . . Route ------- -11/Scrapyard -10/Materials (discovered 6 exits: *Mat x3 / *Min x2 / *Sub) -10/Subcaves -7/Scraptown (discovered 2 exits: *Fac x2) -5/Factory (discovered 6 exits: *Fac x4 / Upp x2) -4/Factory (discovered 2 exits: Upp x2) History --------- Turn | Location | Event 18 | -11/Scrapyard | Discovered new exit (range 15) 117 | -11/Scrapyard | Entered Materials 314 | -10/Materials | Build established: Mutant 400 | -10/Materials | Lost 3 parts (1n1u1w) 532 | -10/Materials | Discovered new exit (range 13) 610 | -10/Materials | Discovered new exit (range 13) 760 | -10/Materials | Identified exit to Mines 760 | -10/Materials | Identified exit to Subcaves 796 | -10/Materials | Identified exit to Materials 849 | -10/Materials | Learned location of 1 exit from Storage 852 | -10/Materials | Learned location of 1 exit from Recycling 858 | -10/Materials | Core integrity fell below 50% 862 | -10/Materials | Learned Storage garrison access intel 882 | -10/Materials | Learned location of 1 exit from Storage 1861 | -10/Materials | Entered Subcaves 1862 | -10/Subcaves | Approached by a straggling Scientist 1943 | -10/Subcaves | Entered Scraptown 1943 | -7/Scraptown | System corruption cleaned by C-Scrubber 2471 | -7/Scraptown | Discovered new exit (range 7) 2866 | -7/Scraptown | Visited Cyclists 2957 | -7/Scraptown | Visited Comm Corps 3037 | -7/Scraptown | Visited Fellowship of the Rings 3099 | -7/Scraptown | Visited Cave Peace 3184 | -7/Scraptown | Visited Assassins FH 3283 | -7/Scraptown | Visited UFD Registry 3294 | -7/Scraptown | Registered with UFD as "Longboard" 3342 | -7/Scraptown | Visited Cartography Club 3393 | -7/Scraptown | Found Surveybot 17 Chip 3644 | -7/Scraptown | Found Deep Structural Scanner 3847 | -7/Scraptown | Learned location of Archives (-6) 3847 | -7/Scraptown | Learned location of Hub_04(d) (-6) 3847 | -7/Scraptown | Learned 4 Mines zone layouts 3847 | -7/Scraptown | Learned 8 Lower Caves zone layouts 3847 | -7/Scraptown | Learned 16 Lower Caves zone layouts 3847 | -7/Scraptown | Learned 8 Proximity Caves zone layouts 3847 | -7/Scraptown | Learned 4 Hub_04(d) zone layouts 3847 | -7/Scraptown | Learned Materials emergency access door positions 3847 | -7/Scraptown | Learned location of 2 exits from Factory 3847 | -7/Scraptown | Learned location of 3 exits from Factory 3847 | -7/Scraptown | Learned location of 1 exit from Lower Caves 3847 | -7/Scraptown | Identified exit to Factory 3904 | -7/Scraptown | Visited Science Guys 3970 | -7/Scraptown | Visited Research Penetration Think Tank 4018 | -7/Scraptown | Visited Chapter 10 4058 | -7/Scraptown | Visited Abandonware Association 4102 | -7/Scraptown | Visited Derelict Rescue Squad 4119 | -7/Scraptown | Found DRS Beacon 4145 | -7/Scraptown | Visited DA-N13 Charitable Foundation 4167 | -7/Scraptown | Found DCF Scrap (31 items) 4459 | -7/Scraptown | Visited LU-1G1's Boring Crew 4581 | -7/Scraptown | Visited Observation Area 4755 | -7/Scraptown | Met Optimus 4755 | -7/Scraptown | Accepted into 0bPrime 4839 | -7/Scraptown | Entered Factory 4839 | -5/Factory | Evolved 10 slots: Power x2, Utility x7, Weapon x1 4840 | -5/Factory | Identified exit to Upper Caves 4841 | -5/Factory | Identified exit to Factory 5008 | -5/Factory | Garrison activated, responded to threat 5050 | -5/Factory | Lost 7 parts (4u3w) 5352 | -5/Factory | Garrison activated, responded to threat 5385 | -5/Factory | Released all parts (2) 5401 | -5/Factory | Noticed a derelict Sapper rigging charges 5415 | -5/Factory | Lost 15 parts (3p2n7u3w) 5440 | -5/Factory | Core integrity fell below 50% 5513 | -5/Factory | Cargo convoy interrupted 5546 | -5/Factory | Released all parts (2) 5575 | -5/Factory | Lost 6 parts (1p1n2u2w) 5578 | -5/Factory | Core integrity fell below 20% 5582 | -5/Factory | Entered another Factory area 5582 | -4/Factory | Evolved 2 slots: Propulsion x1, Utility x1 5583 | -4/Factory | Identified exit to Upper Caves 5691 | -4/Factory | Core integrity fell below 50% 5719 | -4/Factory | Core integrity fell below 20% 5748 | -4/Factory | Released all parts (2) 5748 | -4/Factory | Destroyed by P-70 Sage with High-powered Shock Rifle Last Messages --------------- 05714_ K-01 Serf collects debris. 05714_ U-05 Engineer lays Concrete. 05714_ S-27 Virus destroyed. 05715_ U-05 Engineer lays Concrete. 05715_ T-07 Excavator is excavating. 05716_ K-01 Serf collects debris. 05716_ Mapping Drone retrieved by Mapping Drone Bay (repair cost: 2). 05716_ Mapping Drone destroyed. 05718_ K-01 Serf collects debris. 05719_ T-07 Excavator is excavating. 05722_ K-01 Serf collects debris. 05723_ T-07 Excavator is excavating. 05727_ S-27 Virus destroyed. 05727_ K-01 Serf collects debris. 05728_ Mapping Drone Bay destroyed. 05728_ T-07 Excavator is excavating. 05736_ Acquired Adv. Hardlight Generator. 05739_ Acquired Imp. Gyrokinetic Inverter. 05748_ Released Adv. Hardlight Generator. 05748_ Released Imp. Gyrokinetic Inverter. Map ----- +----------------------------------------------------+ | ???????????#????#?????## % # """" """" #??????? | | ???????????????#???????# # ? #??????? | | ???????????????????????# # ? ##?????? | | ??????????##???#???###?# #########??###??????? | | ??????????#???#??#?????# #????????? ? ??????? | | ??????????#?????#???#??# #?#?????????????????? | | ???????????????????#???# [% #?#???? ? ?????????? | | ???????????????????##??# = #?????? ???????????? | | ?????????##???#???????## % #??? ??????? ? ?????? | | ????????#???????######## #??? ? ? ?? ????????? | | ??????????????#?# #???? ????? ????????? | | ?????????????# ## #???? ??????????????? | | ??????????????# # % #????? ??? ?????????? | | ??????????????# #???????????????????? | | ???????????????## #??????? ??????????? | | ?????????#??????# #?????? ????????????? | | ????????????????# ####+######?????????? | | ???????????????## ????????? | | ????????????????# ????????? | | ?????????????? ?# ???????? | | ????????????????# ???????? | | ????????????????# ???????? | | ????????????????## ########+############?????????? | | ?????????????????# #?# #??????????????? | | ?????????????????# #?# #??????????????? | | ?????????????????# #?# @p"""""" #??????????????? | | ?????????????????# #?# =s"""""" #??????????????? | | ?????????????????# #?# s"""""" #??????????????? | | ?????????????????# ### s"""""" #??????????????? | | ?????????????????# #?#! #??????????????? | | ?????????????????? ??# p #??????????????? | | ?????????????????? ??# !! #??????????????? | | ?????????????????? ??# !! #??????????????? | | ?????????????????? ??# !!= #??????????????? | | ?????????????????? ??# #??????????????? | | ?????????????????? ??##############??????????????? | | ?????????????????? ??????????????????????????????? | | ?????????????????????????????????????????????????? | | ?????????????????????????????????????????????????? | | ?????????????????????????????????????????????????? | | ?????????????????????????????????????????????????? | | ?????????????????????????????????????????????????? | | ?????????????????????????????????????????????????? | | ?????????????????????????????????????????????????? | | ?????????????????????????????????????????????????? | | ?????????????????????????????????????????????????? | | ?????????????????????????????????????????????????? | | ?????????????????????????????????????????????????? | | ?????????????????????????????????????????????????? | | ?????????????????????????????????????????????????? | +----------------------------------------------------+ Best States ------------- Heat Dissipation 86 Energy Generation 43 Energy Capacity 555 Matter Stores 300 Matter Capacity 300 Sight Range 16 Robot Scan Range 14 Terrain Scan Density 10 Armor Coverage 1125 Evasion (%) 50 Core Analysis 6 Recoil Reduction 2 Item Schematics ----------------- None Robot Schematics ------------------ None Fabricated ------------ Nothing Repaired ---------- Nothing Studied --------- None Alien Tech Used ----------------- None Achievements -------------- It Was An Accident, I Swear Jackpot Challenges ------------ None Game ------ Seed ShadingWeldingLattice Manual? 0 Play Time 00:36:40 Cumulative 58.6 hours Start 2026.01.14 @ 23:45:54 End 2026.01.15 @ 18:31:03 Sessions 3 Manual Loads 0 Difficulty Rogue Special Mode None Game No. 124 Rogue 117 Adventurer 7 Explorer 0 Win Type - Total 1 Types 1/0/0/0/0/0/0/0/0/0 Lore% 33 Gallery% 39 Achievement% 29 Wizard Run 0 Options --------- Layout 0 ASCII 0 Keyboard 1 Movement Vi Keybinds 0 Fullscreen 1 Font 18/SmallcapsGlow Map View 112x50 Zoom Use 0% Tactical HUD 1 Map Filters NONE Filters NONE Steam 1 RUN: eb755be2-8bee-4f36-b9fd-da821bdc5896